bitfinex/quotes_SOLUSD_20250624
["timestamp","ask_amount","ask_price","bid_price","bid_amount"]
[1750800379957,6.53842874,145.04,144.99,128.13519312]
[1750800381287,7.91736695,145.04,144.99,128.13519312]
[1750800381479,7.91736695,145.04,145.0,6.53842874]
[1750800383660,7.91736695,145.04,145.0,13.43485906]
[1750800383980,1.37893821,145.04,145.0,13.43485906]
[1750800384150,1.37893821,145.04,145.0,102.13485906]
[1750800384880,1.37893821,145.04,145.0,95.59643032]
[1750800385265,6.53842874,145.04,145.0,95.59643032]
[1750800385980,3.44661198,145.07,145.0,102.13485906]
[1750800386161,6.53842874,145.05,145.0,102.13485906]
[1750800388664,1.37883003,145.06,145.01,6.53842874]
[1750800388980,7.91725877,145.06,145.01,6.53842874]
[1750800389367,6.53842874,145.05,145.0,102.13485906]
[1750800390190,6.53842874,145.06,145.01,6.53842874]
[1750800390373,7.91725654,145.06,145.01,13.43450212]
[1750800391190,6.53842874,145.05,145.01,6.89607338]
[1750800391395,7.91725654,145.06,145.01,6.89607338]
[1750800395489,7.91725654,145.06,145.01,13.43450212]
[1750800395878,7.91725654,145.06,145.01,102.13450212]
[1750800398086,7.91725654,145.06,145.01,95.59607338]
[1750800401305,12.99960058,145.06,145.01,95.59607338]
[1750800401602,7.91725654,145.06,145.01,95.59607338]
[1750800401904,12.99960058,145.06,145.01,95.59607338]
[1750800402130,7.91725654,145.06,145.01,95.59607338]
[1750800402303,1.3788278,145.06,145.01,102.13450212]
[1750800402504,3.44637441,145.08,145.01,102.13450212]
[1750800402505,6.53842874,145.07,145.01,102.13450212]
[1750800402703,5.11677428,145.06,145.01,102.13450212]
[1750800402897,6.53842874,145.07,145.01,102.13450212]
[1750800403106,5.11677323,145.06,145.01,102.13450212]
[1750800403302,5.12109599,145.05,145.01,102.13450212]
[1750800403633,5.12109599,145.06,145.01,102.13450212]
[1750800403819,5.12109599,145.05,145.01,102.13450212]
[1750800404020,5.12109599,145.06,145.01,102.13450212]
[1750800404329,5.12109599,145.05,145.01,102.13450212]
[1750800404512,7.91714199,145.07,145.01,102.13450212]
[1750800404828,5.12598602,145.06,145.04,6.53842874]
[1750800405003,12.9810149,145.1,145.04,95.23842874]
[1750800405201,5.12550439,145.09,145.04,95.23842874]
[1750800405504,5.12550439,145.08,145.04,95.23842874]
[1750800405718,5.12550439,145.07,145.04,95.23842874]
[1750800405899,6.53842874,145.09,145.04,102.13271908]
[1750800406094,5.1254859,145.08,145.04,102.13271908]
[1750800406301,5.1254859,145.07,145.04,95.59429034]
[1750800406519,5.1254859,145.06,145.04,95.59429034]
[1750800406816,7.91695503,145.09,145.04,95.59429034]
[1750800407012,5.12876966,145.08,145.04,102.13271908]
[1750800407197,5.13120073,145.07,145.04,102.13271908]
[1750800407400,7.91682,145.1,145.04,102.13271908]
[1750800407601,11.66962979,145.09,145.04,102.13271908]
[1750800407818,5.13120105,145.08,145.04,102.13271908]
[1750800408025,5.13120105,145.07,145.04,102.13271908]
[1750800408218,6.53842874,145.09,145.04,102.13271908]
[1750800408416,5.13469853,145.08,145.04,102.13271908]
[1750800408618,5.13469853,145.07,145.04,102.13271908]
[1750800408906,6.53842874,145.09,145.04,102.13271908]
[1750800409103,5.13469853,145.08,145.04,102.13271908]
[1750800409325,5.13469853,145.07,145.04,102.13271908]
[1750800409632,6.53842874,145.09,145.04,102.13271908]
[1750800409823,5.13905194,145.08,145.04,102.13271908]
[1750800410025,6.53842874,145.09,145.04,102.13271908]
[1750800410213,5.13870403,145.08,145.04,102.13271908]
[1750800410529,5.13870403,145.07,145.04,102.13271908]
[1750800410832,6.53842874,145.09,145.04,102.13271908]
[1750800411133,5.14334745,145.08,145.04,102.13271908]
[1750800411430,5.14334745,145.07,145.04,102.13271908]
[1750800411630,6.53842874,145.09,145.04,102.13271908]
[1750800411816,5.14668422,145.08,145.04,102.13271908]
[1750800412018,5.14668422,145.07,145.04,102.13271908]
[1750800412220,6.53842874,145.09,145.04,102.13271908]
[1750800412424,5.14837713,145.08,145.04,102.13271908]
[1750800412617,5.14837713,145.07,145.04,102.13271908]
[1750800412826,6.53842874,145.09,145.04,102.13271908]
[1750800413028,5.14840079,145.08,145.04,102.13271908]
[1750800413230,5.14840079,145.07,145.04,102.13271908]
[1750800413532,6.53842874,145.09,145.04,102.13271908]
[1750800413732,5.14988359,145.08,145.04,102.13271908]
[1750800414031,5.14988359,145.07,145.04,102.13271908]
[1750800414206,4.18079832,145.09,145.04,99.77508866]
[1750800414408,5.15075736,145.08,145.04,99.77508866]
[1750800414623,5.15075736,145.07,145.04,99.77508866]
[1750800414826,4.18079832,145.09,145.04,99.77508866]
[1750800415012,5.1507881,145.08,145.04,99.77508866]
[1750800415213,5.1507881,145.07,145.04,99.77508866]
[1750800415415,4.18079832,145.09,145.04,99.77508866]
[1750800415615,5.15123425,145.08,145.04,99.77508866]
[1750800415817,5.15123425,145.07,145.04,99.77508866]
[1750800416018,4.18079832,145.09,145.04,99.77508866]
[1750800416218,5.15123425,145.08,145.04,99.77508866]
[1750800416417,4.18079832,145.09,145.04,99.77508866]
[1750800416627,5.1514749,145.08,145.04,99.77508866]
[1750800416829,4.18079832,145.09,145.04,99.77508866]
[1750800417007,5.1514749,145.08,145.04,99.77508866]
[1750800417212,4.18079832,145.09,145.04,99.77508866]
[1750800417413,5.15167843,145.08,145.04,99.77508866]
[1750800417612,4.18079832,145.09,145.04,99.77508866]
[1750800417929,5.15167843,145.08,145.04,99.77508866]
[1750800418129,4.18079832,145.09,145.04,99.77508866]
[1750800418329,5.15139657,145.08,145.04,99.77508866]
[1750800418543,4.18079832,145.09,145.04,99.77508866]
[1750800418726,5.15139657,145.08,145.05,11.07460964]
[1750800418928,4.18079832,145.09,145.05,11.07460964]
[1750800419119,5.1513375,145.08,145.05,11.07460964]
[1750800419437,4.18079832,145.09,145.05,11.07460964]
[1750800419638,5.15097656,145.08,145.05,99.77460964]
[1750800419816,4.18079832,145.09,145.05,99.77460964]
[1750800420628,4.18079832,145.09,145.05,95.59381132]
[1750800421833,4.18079832,145.09,145.05,99.77460964]
[1750800423538,5.55926125,145.09,145.05,88.7]
[1750800423744,4.18079832,145.06,145.05,88.7]
[1750800424040,9.33111466,145.06,145.05,88.7]
[1750800424646,9.33111466,145.06,145.01,6.0786]
[1750800424841,4.18079832,145.04,144.99,24.33864718]
[1750800425029,5.5597389,145.04,144.99,57.23537408]
[1750800425340,4.18079832,145.03,144.99,1.5082]
[1750800425538,4.18079832,145.03,144.99,27.5082]
[1750800425749,4.18079832,145.03,144.99,34.40517556]
[1750800426922,4.18079832,145.03,144.99,8.40517556]
[1750800428647,4.18079832,145.02,144.99,1.5082]
[1750800429139,4.18079832,145.02,144.97,43.56277053]
[1750800429728,5.55998872,145.02,144.97,43.56277053]
[1750800430241,7.91846488,145.02,144.97,39.02357448]
[1750800430431,6.53927448,145.01,144.97,39.02357448]
[1750800430626,6.53927448,145.01,144.97,127.72357448]
[1750800430930,7.91846488,145.02,144.97,127.72357448]
[1750800433026,7.91846488,145.02,144.97,121.23927448]
[1750800433225,13.06773074,145.02,144.97,121.23927448]
[1750800433551,7.91846488,145.02,144.97,121.23927448]
[1750800434141,13.06773074,145.02,144.97,121.23927448]
[1750800434342,7.91846488,145.02,144.97,121.23927448]
[1750800434647,7.91846488,145.02,144.97,128.13723316]
[1750800434822,13.06773074,145.02,144.98,6.53927448]
[1750800435024,1.3791904,145.02,144.98,6.53927448]
[1750800435250,6.52845626,145.02,144.98,6.53927448]
[1750800435433,1.3791904,145.02,144.98,6.53927448]
[1750800435870,6.52601164,145.02,144.98,6.53927448]
[1750800436352,1.3791904,145.02,144.98,6.53927448]
[1750800437346,4.82592964,145.05,144.98,6.53927448]
[1750800437649,6.53927448,145.03,144.98,95.23927448]
[1750800438442,1.37912012,145.02,144.98,95.23927448]
[1750800448872,1.37904444,145.03,144.99,6.53927448]
[1750800449171,1.37904444,145.03,145.0,6.53927448]
[1750800449757,1.37904444,145.03,144.99,95.23927448]
[1750800449969,6.53927448,145.02,144.97,32.53927448]
[1750800450357,4.18523693,145.02,144.97,30.18523693]
[1750800450558,1.37904444,145.03,144.97,37.08303348]
[1750800450889,5.56428137,145.03,144.98,4.18523693]
[1750800451364,1.37904444,145.03,144.99,4.18523693]
[1750800454070,1.37904444,145.03,144.99,11.08221487]
[1750800455072,1.37904444,145.03,144.99,99.78221487]
[1750800456275,5.56428137,145.03,144.99,88.7]
[1750800459161,10.70332864,145.03,144.99,88.7]
[1750800459363,5.56428137,145.03,144.99,88.7]
[1750800459563,10.70332864,145.03,144.99,88.7]
[1750800459774,5.56428137,145.03,144.99,88.7]
[1750800459976,10.70332864,145.03,144.99,88.7]
[1750800460163,5.56428137,145.03,144.99,88.7]
[1750800460363,10.70332864,145.03,144.99,88.7]
[1750800460559,5.56428137,145.03,144.99,88.7]
[1750800460775,10.70952927,145.03,144.99,88.7]
[1750800460977,5.56428137,145.03,144.99,88.7]
[1750800461274,10.70952927,145.03,144.99,88.7]
[1750800461449,5.56428137,145.03,144.99,88.7]
[1750800461650,10.70952927,145.03,144.99,88.7]
[1750800461865,5.56428137,145.03,144.99,88.7]
[1750800462077,10.70952927,145.03,144.99,88.7]
[1750800462260,5.56428137,145.03,144.99,88.7]
[1750800464179,6.53152699,145.02,144.99,88.7]
[1750800464384,5.56437541,145.02,144.99,88.7]
[1750800466584,6.53508809,145.01,144.99,88.7]
[1750800466787,1.37929742,145.01,144.99,88.7]
[1750800466969,1.37929742,145.01,144.96,101.39846213]
[1750800468459,5.163952,145.0,144.96,101.39846213]
[1750800468661,1.37929742,145.01,144.96,101.39846213]
[1750800468960,5.163952,145.0,144.96,101.39846213]
[1750800469272,1.37929742,145.01,144.96,101.39846213]
[1750800469580,5.16547569,145.0,144.96,101.39846213]
[1750800469783,1.37929742,145.01,144.96,101.39846213]
[1750800469972,5.16547617,145.0,144.96,101.39846213]
[1750800470173,1.37929742,145.01,144.96,101.39846213]
[1750800470478,5.16547617,145.0,144.96,101.39846213]
[1750800470676,1.37929742,145.01,144.96,101.39846213]
[1750800470888,5.1664609,145.0,144.96,101.39846213]
[1750800471179,1.37929742,145.01,144.96,101.39846213]
[1750800471381,5.16642269,145.0,144.96,101.39846213]
[1750800471583,1.37929742,145.01,144.96,101.39846213]
[1750800471885,5.16751148,145.0,144.96,101.39846213]
[1750800472085,1.37929742,145.01,144.96,101.39846213]
[1750800472382,5.1675497,145.0,144.96,101.39846213]
[1750800472584,1.37929742,145.01,144.96,101.39846213]
[1750800472777,5.16857189,145.0,144.96,101.39846213]
[1750800472980,1.37929742,145.01,144.96,97.2132252]
[1750800473155,5.16857189,145.0,144.96,101.39846213]
[1750800473356,1.37929742,145.01,144.96,101.39846213]
[1750800473579,5.1699864,145.0,144.96,101.39846213]
[1750800473786,1.37929742,145.01,144.96,101.39846213]
[1750800473989,5.16998592,145.0,144.96,101.39846213]
[1750800474284,1.37929742,145.01,144.96,101.39846213]
[1750800474474,5.17029514,145.0,144.96,101.39846213]
[1750800474674,1.37929742,145.01,144.96,101.39846213]
[1750800474889,5.17029466,145.0,144.96,101.39846213]
[1750800475188,1.37929742,145.01,144.96,101.39846213]
[1750800475385,5.17029514,145.0,144.96,101.39846213]
[1750800475592,1.37929742,145.01,144.96,101.39846213]
[1750800475784,5.17032657,145.0,144.96,101.39846213]
[1750800475986,1.37929742,145.01,144.96,101.39846213]
[1750800476287,5.17039368,145.0,144.96,101.39846213]
[1750800476589,1.37929742,145.01,144.96,101.39846213]
[1750800476774,6.54977691,145.0,144.96,101.39846213]
[1750800476978,1.37932824,145.0,144.96,101.39846213]
[1750800477290,5.17049875,144.99,144.96,101.39846213]
[1750800477479,1.37932824,145.0,144.96,101.39846213]
[1750800477668,5.1704565,144.99,144.96,101.39846213]
[1750800477870,1.37912012,145.02,144.96,101.39846213]
[1750800478072,5.1703967,145.01,144.97,4.18523693]
[1750800478371,5.1703967,145.0,144.97,4.18523693]
[1750800478695,1.37912012,145.02,144.97,4.18523693]
[1750800478877,1.37931034,145.0,144.97,4.18523693]
[1750800479391,1.37931034,145.0,144.96,88.7]
[1750800479688,5.17043818,144.99,144.96,88.7]
[1750800479891,5.17043818,144.98,144.96,88.7]
[1750800480185,5.17043818,144.97,144.96,88.7]
[1750800480780,6.55003395,144.97,144.96,88.7]
[1750800484782,5.17043818,144.97,144.94,4.18523693]
[1750800484974,1.37952652,144.98,144.94,4.18523693]
[1750800485177,5.16293365,144.97,144.94,4.18523693]
[1750800485370,1.37952652,144.98,144.94,4.18523693]
[1750800485702,5.16183442,144.97,144.94,4.18523693]
[1750800485883,1.37952652,144.98,144.94,4.18523693]
[1750800486079,5.16183442,144.97,144.94,4.18523693]
[1750800486276,1.37952652,144.98,144.94,4.18523693]
[1750800487191,1.37960691,144.97,144.94,4.18523693]
[1750800487580,1.37960691,144.97,144.93,106.00798622]
[1750800487782,1.37960691,144.97,144.94,4.18523693]
[1750800488296,1.37950062,144.98,144.94,4.18523693]
[1750800493604,1.37950062,144.98,144.94,92.88523693]
[1750800499507,1.37950062,144.98,144.94,88.7]
[1750800499693,1.37950062,144.98,144.94,92.88523693]
[1750800510612,1.37950062,144.98,144.94,99.78449975]
[1750800510801,1.37950062,144.98,144.95,4.18523693]
[1750800511303,7.63351279,145.0,144.95,4.18523693]
[1750800511304,1.37945506,144.99,144.95,4.18523693]
[1750800511506,5.15629859,144.98,144.95,4.18523693]
[1750800511702,1.37945506,144.99,144.95,4.18523693]
[1750800511897,5.15626926,144.98,144.95,4.18523693]
[1750800512097,1.37945506,144.99,144.95,4.18523693]
[1750800512415,5.15638354,144.98,144.95,4.18523693]
[1750800512610,1.37945506,144.99,144.95,4.18523693]
[1750800512790,5.15672427,144.98,144.95,4.18523693]
[1750800512991,1.37945506,144.99,144.95,4.18523693]
[1750800513214,5.15673357,144.98,144.95,4.18523693]
[1750800513398,1.37945506,144.99,144.95,4.18523693]
[1750800513591,5.15721149,144.98,144.95,4.18523693]
[1750800513792,1.37945506,144.99,144.95,4.18523693]
[1750800513993,5.157211,144.98,144.95,4.18523693]
[1750800514215,1.37945506,144.99,144.95,11.08406758]
[1750800514513,5.15732703,144.98,144.95,11.08406758]
[1750800514688,1.37945506,144.99,144.95,11.08406758]
[1750800514889,5.15772106,144.98,144.95,11.08406758]
[1750800515102,1.37931034,145.0,144.95,11.08406758]
[1750800515318,5.15772154,144.99,144.95,99.78406758]
[1750800515499,5.15772154,144.98,144.95,99.78406758]
[1750800515698,1.37931034,145.0,144.95,99.78406758]
[1750800515900,5.15838105,144.99,144.95,99.78406758]
[1750800516109,5.15838105,144.98,144.95,99.78406758]
[1750800516317,1.37931034,145.0,144.95,99.78406758]
[1750800516621,5.15911803,144.99,144.95,99.78406758]
[1750800516822,5.15911803,144.98,144.95,99.78406758]
[1750800516996,1.37941567,144.99,144.95,99.78406758]
[1750800517324,5.15911851,144.98,144.95,99.78406758]
[1750800517619,5.15992338,144.97,144.95,99.78406758]
[1750800517924,1.37931034,145.0,144.95,99.78406758]
[1750800518098,5.15995176,144.99,144.95,99.78406758]
[1750800518393,5.15995176,144.98,144.95,99.78406758]
[1750800518593,5.15995176,144.97,144.95,99.78406758]
[1750800518805,1.37931034,145.0,144.95,99.78406758]
[1750800519126,5.16086934,144.99,144.95,99.78406758]
[1750800519305,5.16086934,144.99,144.96,4.18523693]
[1750800519507,5.16086934,144.99,144.97,4.18523693]
[1750800519715,26.0,145.01,144.97,4.18523693]
[1750800520423,1.37931801,145.0,144.96,11.08365531]
[1750800522031,1.37924038,145.01,144.97,4.18523693]
[1750800523116,1.37912012,145.02,144.97,99.78320098]
[1750800524315,1.37912012,145.02,144.98,4.18523693]
[1750800524527,1.37912012,145.02,144.98,92.88523693]
[1750800525208,1.37912012,145.02,144.98,99.7826717]
[1750800527833,1.37912012,145.02,144.98,95.59743477]
[1750800528134,1.37912012,145.02,144.98,99.7826717]
[1750800529230,11.50429185,145.03,144.98,99.7826717]
[1750800529437,5.94,145.03,144.99,4.18523693]
[1750800530016,7.31903265,145.03,144.99,4.18523693]
[1750800530325,7.31903265,145.03,144.99,11.08215196]
[1750800533733,7.31903265,145.03,144.99,99.78215196]
[1750800535538,5.94,145.03,145.0,4.18523693]
[1750800536934,4.18523693,145.07,145.02,4.18523693]
[1750800537134,1.37864479,145.07,145.03,4.18523693]
[1750800537540,11.50383245,145.08,145.03,4.18523693]
[1750800538944,11.50383245,145.08,145.03,11.08013315]
[1750800544845,7.31859552,145.08,145.03,11.08013315]
[1750800545140,5.94,145.08,145.05,4.18523693]
[1750800545319,5.94,145.08,145.05,92.88523693]
[1750800545930,5.94,145.08,145.06,4.18523693]
[1750800547256,5.94,145.08,145.06,11.07884692]
[1750800547542,17.43245628,145.1,145.06,6.89360999]
[1750800547948,18.81082758,145.1,145.06,6.89360999]
[1750800548245,18.81082758,145.1,145.06,11.07884692]
[1750800548646,18.81082758,145.1,145.06,4.18523693]
[1750800550345,18.81082758,145.1,145.06,11.07891837]
[1750800551345,18.81082758,145.1,145.06,6.89368144]
[1750800551643,18.81082758,145.1,145.05,99.77924578]
[1750800554352,18.81082758,145.1,145.05,95.59400885]
[1750800554649,18.81082758,145.1,145.05,99.77924578]
[1750800555973,18.81082758,145.1,145.05,95.59400885]
[1750800556141,18.81082758,145.1,145.05,99.77924578]
[1750800556956,4.18523693,145.1,145.05,99.77924578]
[1750800557539,5.56350169,145.11,145.06,4.18523693]
[1750800557747,5.56350169,145.11,145.06,92.88523693]
[1750800558261,5.56350169,145.11,145.06,99.77859998]
[1750800561256,5.56350169,145.11,145.06,95.59336305]
[1750800561450,5.56350169,145.11,145.06,99.77859998]
[1750800562445,17.23519485,145.1,145.06,99.77859998]
[1750800562759,5.56350169,145.11,145.06,99.77859998]
[1750800567462,26.0,145.12,145.07,4.18523693]
[1750800567463,31.56345558,145.12,145.07,4.18523693]
[1750800568359,31.56345558,145.12,145.07,11.07806304]
[1750800570557,36.69205711,145.12,145.07,11.07806304]
[1750800570763,36.69205711,145.12,145.07,4.18523693]
[1750800571572,4.18523693,145.08,145.05,88.7]
[1750800571746,4.18523693,145.06,145.0,8.06]
[1750800571948,4.18523693,145.05,145.0,100.94523693]
[1750800572150,4.18523693,145.05,145.0,12.24523693]
[1750800572780,5.56416688,145.04,145.0,8.06]
[1750800573153,9.01149175,145.04,145.0,8.06]
[1750800574346,9.01149175,145.04,145.0,1.6177]
[1750800574553,4.18523693,145.03,145.0,1.6177]
[1750800574745,1.37912012,145.02,144.97,1.6523]
[1750800574950,14.14075888,145.02,144.97,5.83753693]
[1750800575152,4.18523693,145.0,144.97,1.6523]
[1750800575348,9.31383846,145.0,144.95,4.18523693]
[1750800575568,4.18523693,145.0,144.95,4.18523693]
[1750800575768,9.31383846,145.0,144.95,4.18523693]
[1750800575978,4.18523693,145.0,144.95,4.18523693]
[1750800576176,9.31383846,145.0,144.95,4.18523693]
[1750800576378,4.18523693,145.0,144.95,4.18523693]
[1750800576559,9.31383846,145.0,144.95,4.18523693]
[1750800576758,4.18523693,144.99,144.94,4.18523693]
[1750800576959,1.37950062,144.98,144.94,4.18523693]
[1750800577381,5.56473755,144.98,144.93,5.76023693]
[1750800578176,1.37950062,144.98,144.94,4.18523693]
[1750800578390,5.56473755,144.98,144.93,5.76023693]
[1750800579583,1.37950062,144.98,144.93,5.76023693]
[1750800580185,4.18523693,144.97,144.93,1.575]
[1750800581082,4.18523693,144.98,144.93,1.575]
[1750800583166,1.37959577,144.97,144.93,5.76023693]
[1750800584787,5.5648327,144.97,144.92,4.18523693]
[1750800584980,4.18523693,144.96,144.91,4.18523693]
[1750800585486,1.37978613,144.95,144.91,4.18523693]
[1750800587278,1.37978613,144.95,144.9,26.0]
[1750800587483,1.37978613,144.95,144.91,4.18523693]
[1750800588181,1.37978613,144.95,144.91,92.88523693]
[1750800590593,5.56502306,144.95,144.91,88.7]
[1750800591090,4.18523693,144.94,144.89,94.40863693]
[1750800591482,9.01448839,144.95,144.9,4.18523693]
[1750800595093,9.01448839,144.95,144.89,90.2234]
[1750800595293,9.01448839,144.95,144.9,4.18523693]
[1750800597094,4.82925146,144.95,144.9,4.18523693]
[1750800599989,4.82925146,144.95,144.9,92.88523693]
[1750800600305,1.37978613,144.95,144.92,4.18523693]
[1750800600489,1.37959577,144.97,144.94,4.18523693]
[1750800600691,1.37959577,144.97,144.93,4.18523693]
[1750800603909,1.37954048,144.98,144.95,4.18523693]
[1750800604120,1.37954048,144.98,144.94,4.18523693]
[1750800604295,1.37954048,144.98,144.95,4.18523693]
[1750800605117,1.37940547,144.99,144.95,4.18523693]
[1750800606293,7.92077323,145.0,144.95,6.54146289]
[1750800609290,1.37950062,144.98,144.95,6.54146289]
[1750800610813,1.37950062,144.98,144.94,6.54146289]
[1750800610998,7.92096351,144.98,144.93,95.24146289]
[1750800612115,7.92096351,144.98,144.94,6.54146289]
[1750800613418,6.54146289,144.97,144.93,88.7]
[1750800614404,11.64404258,144.97,144.93,88.7]
[1750800615118,1.37969094,144.96,144.93,95.24146289]
[1750800615327,6.48227063,144.96,144.93,95.24146289]
[1750800616523,1.37969094,144.96,144.93,95.24146289]
[1750800616916,7.92096351,144.98,144.93,95.24146289]
[1750800617226,11.68983892,144.97,144.93,88.7]
[1750800617405,5.14837603,144.96,144.93,88.7]
[1750800617608,5.14837603,144.95,144.93,88.7]
[1750800617796,6.54146289,144.96,144.91,95.24146289]
[1750800617797,5.14837603,144.94,144.91,95.24146289]
[1750800618000,6.54146289,144.96,144.91,95.24146289]
[1750800618206,5.15272478,144.95,144.91,95.24146289]
[1750800618408,5.15272478,144.94,144.91,95.24146289]
[1750800618607,6.54146289,144.96,144.91,95.24146289]
[1750800618829,1.37988133,144.94,144.91,95.24146289]
[1750800619523,5.16080377,144.93,144.91,95.24146289]
[1750800619827,1.37988133,144.94,144.91,95.24146289]
[1750800620125,5.1608514,144.93,144.91,95.24146289]
[1750800620328,1.37988133,144.94,144.91,95.24146289]
[1750800620513,5.16161272,144.93,144.91,95.24146289]
[1750800620714,1.3798321,144.95,144.91,95.24146289]
[1750800620929,5.16164148,144.94,144.91,95.24146289]
[1750800621230,1.3798321,144.95,144.91,95.24146289]
[1750800621231,5.16164148,144.93,144.91,95.24146289]
[1750800621414,1.3798321,144.95,144.91,95.24146289]
[1750800621622,5.16209953,144.94,144.91,95.24146289]
[1750800621928,1.3798321,144.95,144.91,95.24146289]
[1750800622132,5.16209953,144.94,144.91,95.24146289]
[1750800622430,1.3798321,144.95,144.91,95.24146289]
[1750800622618,5.16288741,144.94,144.91,95.24146289]
[1750800622816,1.3798321,144.95,144.91,95.24146289]
[1750800623027,5.16288693,144.94,144.92,6.54146289]
[1750800623216,1.3798321,144.95,144.92,6.54146289]
[1750800623535,5.16322158,144.94,144.92,6.54146289]
[1750800623818,1.3798321,144.95,144.92,95.24146289]
[1750800624126,5.16335494,144.94,144.92,88.7]
[1750800624328,1.3798321,144.95,144.92,88.7]
[1750800624629,5.16381612,144.94,144.92,88.7]
[1750800624804,1.3798321,144.95,144.92,88.7]
[1750800625003,5.16380026,144.94,144.92,88.7]
[1750800625232,1.37969094,144.96,144.92,88.7]
[1750800625410,5.16394307,144.95,144.92,88.7]
[1750800625610,5.16394307,144.94,144.92,88.7]
[1750800625814,1.37969094,144.96,144.92,88.7]
[1750800626008,5.16409145,144.95,144.92,88.7]
[1750800626330,5.16409145,144.94,144.92,92.88819707]
[1750800626531,1.37983071,144.95,144.92,92.88819707]
[1750800626722,5.16414485,144.94,144.92,92.88819707]
[1750800626925,1.37983071,144.95,144.92,92.88819707]
[1750800627225,5.16414485,144.94,144.92,92.88819707]
[1750800627533,1.37983071,144.95,144.92,88.7]
[1750800627830,5.16406049,144.94,144.92,88.7]
[1750800628028,1.37983071,144.95,144.92,88.7]
[1750800628231,5.16421685,144.94,144.92,88.7]
[1750800628424,1.37969094,144.96,144.92,88.7]
[1750800628728,5.16425923,144.95,144.92,88.7]
[1750800628912,5.16425923,144.94,144.92,88.7]
[1750800629111,1.37969094,144.96,144.92,88.7]
[1750800629324,5.16420144,144.95,144.92,88.7]
[1750800629508,5.16420144,144.94,144.92,88.7]
[1750800629709,1.37983664,144.95,144.92,88.7]
[1750800629908,5.16423796,144.94,144.92,88.7]
[1750800630207,1.37983664,144.95,144.92,88.7]
[1750800630531,5.1641353,144.94,144.92,88.7]
[1750800630707,1.37983664,144.95,144.92,88.7]
[1750800630908,6.54414912,144.94,144.92,88.7]
[1750800631114,1.37969094,144.96,144.92,88.7]
[1750800631328,5.16426407,144.95,144.92,88.7]
[1750800631630,5.16426407,144.94,144.92,88.7]
[1750800631829,1.37969094,144.96,144.92,88.7]
[1750800632130,5.16431086,144.95,144.92,92.88819707]
[1750800632330,5.16431086,144.94,144.92,92.88819707]
[1750800632533,1.37969094,144.96,144.92,92.88819707]
[1750800632732,6.54419773,144.95,144.92,92.88819707]
[1750800633031,5.16433143,144.94,144.92,92.88819707]
[1750800633210,1.3798663,144.95,144.92,92.88819707]
[1750800633532,5.16417037,144.94,144.92,92.88819707]
[1750800633734,1.37969094,144.96,144.92,88.7]
[1750800633927,5.16433064,144.95,144.92,88.7]
[1750800634127,5.16433064,144.94,144.92,88.7]
[1750800634328,1.37969094,144.96,144.92,88.7]
[1750800634329,1.37969094,144.96,144.92,92.88819707]
[1750800634528,5.16412887,144.95,144.92,92.88819707]
[1750800634727,1.37969094,144.96,144.92,92.88819707]
[1750800634933,5.16421544,144.95,144.92,92.88819707]
[1750800635113,1.37969094,144.96,144.92,92.88819707]
[1750800635313,5.16420247,144.95,144.92,92.88819707]
[1750800635534,1.37969094,144.96,144.92,92.88819707]
[1750800635734,6.54397875,144.95,144.92,92.88819707]
[1750800635937,1.37979389,144.95,144.92,92.88819707]
[1750800637041,1.37969094,144.96,144.92,92.88819707]
[1750800637244,5.16443305,144.95,144.92,92.88819707]
[1750800637540,1.37969094,144.96,144.92,88.7]
[1750800637739,5.16472604,144.95,144.92,88.7]
[1750800637944,5.16472604,144.94,144.92,88.7]
[1750800638149,1.37969094,144.96,144.92,88.7]
[1750800638321,5.16484969,144.95,144.92,88.7]
[1750800638518,5.16484969,144.94,144.92,88.7]
[1750800638723,1.37969094,144.96,144.92,88.7]
[1750800638922,1.37988133,144.94,144.92,88.7]
[1750800640446,1.37969094,144.96,144.92,88.7]
[1750800640648,5.16588949,144.95,144.92,88.7]
[1750800640845,5.16588949,144.94,144.92,88.7]
[1750800641040,1.37969094,144.96,144.92,88.7]
[1750800641237,5.16594955,144.95,144.92,88.7]
[1750800641547,6.54583601,144.94,144.91,92.88819707]
[1750800641846,1.37988646,144.94,144.91,92.88819707]
[1750800642034,5.16645758,144.93,144.91,92.88819707]
[1750800642223,1.37988646,144.94,144.91,92.88819707]
[1750800642426,5.16681607,144.93,144.91,92.88819707]
[1750800642719,1.37988646,144.94,144.91,92.88819707]
[1750800642941,5.16681159,144.93,144.91,92.88819707]
[1750800643144,1.37969094,144.96,144.91,92.88819707]
[1750800643343,5.16681062,144.95,144.91,92.88819707]
[1750800643542,5.16681062,144.94,144.91,92.88819707]
[1750800643848,1.37969094,144.96,144.91,92.88819707]
[1750800644050,5.16713605,144.95,144.91,92.88819707]
[1750800644225,5.16713605,144.94,144.91,92.88819707]
[1750800644425,5.16764748,144.93,144.91,92.88819707]
[1750800644633,1.37987792,144.95,144.91,92.88819707]